Cogmind - Beta 15 @@@ ROGUE MODE // 2025.06.05 @ 20:32:15 Player: Wyvric Result: Destroyed by 7B-67C(R) with Subdweller Shrapnel Launcher Performance ------------- Evolutions (0) 0 Regions Visited (3) 600 Robots Destroyed (39) 195 Value Destroyed (793) 793 Prototype IDs (1) 20 Alien Tech Used (0) 0 Bonus (0) 0 TOTAL SCORE: 1608 Bonus ------- None Cogmind --------- Core Integrity 0/250 Matter 300/300 Energy 263/265 System Corruption 0% Temperature Cool (0) Movement Rolling (110) Ox2 Location -10/Subcaves Parts ------- > --- POWER (1) -------- Improved Ion Engine > --- PROPULSION (2) --- Wheel Wheel > --- UTILITY (2) ------ High-capacity Storage Unit Seismic Detector > --- WEAPON (2) ------- Improved EM Shotgun Improved EM Shotgun > --- INVENTORY (20) --- Ion Engine Improved Ion Engine Improved Ion Engine Subdweller Power Source Light Nuclear Core Wheel Wheel Wheel Wheel Wheel Wheel Subdweller Monowheel Large Storage Unit High-capacity Matter Pod (200) Decoy Drone Bay Medium Laser Particle Gun Subdweller Machine Gun Subdweller Shrapnel Launcher Peak State ------------ > --- POWER ------------ Improved Ion Engine > --- PROPULSION ------- Wheel Wheel > --- UTILITY ---------- High-capacity Storage Unit Improved Targeting Computer > --- WEAPON ----------- Improved EM Shotgun Improved EM Shotgun > --- INVENTORY -------- Improved Ion Engine Improved Ion Engine Light Nuclear Core Wheel Wheel Wheel Wheel Wheel Large Storage Unit High-capacity Matter Pod Signal Interpreter Seismic Detector Seismic Detector Decoy Drone Bay Improved EM Shotgun Improved EM Shotgun Medium Laser Particle Gun [Rating: 17] Favorites ----------- Power Improved Ion Engine Engine Improved Ion Engine Propulsion Light Treads Treads Light Treads Wheel Wheel Utility High-capacity Storage Unit Device Seismic Detector Storage High-capacity Storage Unit Processor Improved Targeting Computer Weapon Improved EM Shotgun Energy Gun Improved EM Shotgun Ballistic Gun Light Assault Rifle Build | -11 -10 -10 -10 ------- Run | Yrd Mat Min Sub Slots Evolved . | . . . . Power . | . . . . Propulsion . | . . . . Utility . | . . . . Weapon . | . . . . Parts Attached 25 | 8 10 4 3 Power 3 | 1 2 . . Engine 3 | 1 2 . . Core . | . . . . Reactor . | . . . . Propulsion 5 | 2 1 2 . Treads 3 | 2 1 . . Leg . | . . . . Wheel 2 | . . 2 . Hover . | . . . . Flight . | . . . . Utility 6 | 2 2 2 . Device 2 | 1 . 1 . Storage 2 | 1 1 . . Processor 2 | . 1 1 . Hackware . | . . . . Protection . | . . . . Artifact . | . . . . Weapon 11 | 3 5 . 3 Energy Gun 8 | 1 4 . 3 Energy Cannon . | . . . . Ballistic Gun 3 | 2 1 . . Ballistic Cannon . | . . . . Launcher . | . . . . Special Weapon . | . . . . Impact Weapon . | . . . . Slashing Weapon . | . . . . Piercing Weapon . | . . . . Special Melee Weapon . | . . . . Unidentified Prototypes 1 | . 1 . . Parts Lost 4 | . 1 1 2 Power . | . . . . Propulsion 2 | . 1 1 . Utility . | . . . . Weapon 2 | . . . 2 Highest Loss Streak 1 | . 1 1 1 To Critical Strikes . | . . . . Average Backups 15 | 4 15 17 16 Power 2 | . 2 3 3 Propulsion 6 | 3 8 5 5 Utility 2 | . 2 4 3 Weapon 3 | . 2 4 3 Tool/Special . | . . . . Unused Backups 24 | . 4 3 17 Power 7 | . 2 . 5 Propulsion 9 | . . 2 7 Utility 3 | . . . 3 Weapon 5 | . 2 1 2 Tool/Special . | . . . . Average Slot Usage (%) 99 | . 99 99 100 Engine 14 | . 14 14 14 Treads 16 | . 27 . . Wheel 11 | . . 27 28 Device 4 | . 3 . 14 Storage 14 | . 14 14 14 Processor 9 | . 10 14 . Energy Gun 15 | . 6 28 28 Ballistic Gun 12 | . 21 . . Peak Build Rating 17 | 7 15 17 16 Average Rating 11 | 4 9 15 14 On Entrance 9 | . 7 15 15 Naked Turns . | . . . . Heaviest Build 54 | 13 53 54 54 Greatest Support 40 | 40 40 20 20 Greatest Overweight (x) 2 | . 2 2 2 Average Overweight (x) 1 | . . 2 2 Largest Inventory Capacity 20 | 8 20 20 20 Average Capacity 18 | 6 18 20 20 Most Carried 20 | 7 20 20 20 Average Carried 15 | 4 15 18 17 Final Capacity 20 | 8 20 20 20 Final Carried 20 | 7 20 16 20 Class Distribution -------------------- 100% | Mutant Dominant Class ---------------- Mutant | -10/Materials Mutant | -10/Mines Mutant | -10/Subcaves Resources | -11 -10 -10 -10 ----------- Run | Yrd Mat Min Sub Matter Collected 797 | 190 517 20 70 Remotely . | . . . . Salvage Created 1313 | 24 842 204 243 Parts 87 | 4 42 19 22 Haulers Intercepted 1 | . 1 . . Recyclers Shooed 6 | . 5 1 . Parts Field Recycled . | . . . . Retrieved Matter . | . . . . Parts Self-Destructed 13 | . . . 13 Prevented 2 | . . . 2 Kills | -11 -10 -10 -10 ------- Run | Yrd Mat Min Sub Combat Hostiles Destroyed 29 | . 16 6 7 Guns 28 | . 16 5 7 AOE 1 | . . 1 . Classes Destroyed 9 | 1 7 . 1 Worker 1 | . 1 . . Tunneler 4 | 1 1 2 . Hauler 1 | . 1 . . Recycler 2 | . 2 . . Operator 1 | . 1 . . Watcher 1 | . 1 . . Swarmer 13 | . 3 6 4 Grunt 13 | . 13 . . Subdweller 3 | . . . 3 Best Kill Streak 4 | 1 4 4 4 Combat Bots Only 4 | . 3 3 4 Max Kills in Single Turn 2 | 1 1 2 1 Gunslinging . | . . . . Exploded 1 | . . 1 . Melee . | . . . . Uniques/NPCs Destroyed . | . . . . Combat | -11 -10 -10 -10 -------- Run | Yrd Mat Min Sub Hostile Shots Fired 159 | . 90 16 53 Missed 49 | . 25 3 21 Hits 110 | . 65 13 32 Projectile 110 | . 65 13 32 AOE 1 | . . . 1 Critical Strikes 2 | . 1 . 1 Damage Taken 1113 | . 676 100 337 Core 255 | . 116 32 107 Absorbed by Shields . | . . . . Core Remaining (%) 100 | 100 . . . Volleys Fired 109 | 4 80 12 13 Largest 2 | 2 2 2 2 Hottest 90 | 40 90 90 90 Shots Fired 217 | 8 160 24 25 Gun 217 | 8 160 24 25 Cannon . | . . . . Launcher . | . . . . Special . | . . . . Kinetic 150 | 8 142 . . Thermal . | . . . . Explosive . | . . . . Electromagnetic 67 | . 18 24 25 Robot Hit Streak 20 | 1 10 6 20 Robot Miss Streak 6 | 1 2 5 6 Penetration Max . | . . . . Secondary Targets 4 | . 3 1 . Max Gunslinging Chain 1 | . 1 1 . Shots Hit Robots 152 | 4 113 16 19 Core Hits 79 | 2 54 10 13 Critical Kills . | . . . . Critical Parts Destroyed . | . . . . Critical Strikes . | . . . . Melee Attacks . | . . . . Impact . | . . . . Slashing . | . . . . Piercing . | . . . . Sneak Attacks . | . . . . Combat Hostiles . | . . . . Follow-up Attacks . | . . . . Damage Inflicted 1603 | 32 1038 233 300 Guns 1556 | 32 1019 205 300 Cannons . | . . . . Explosions 28 | . . 28 . Melee . | . . . . Ramming 19 | . 19 . . Kinetic 847 | 32 815 . . Thermal 28 | . . 28 . Explosive . | . . . . Electromagnetic 709 | . 204 205 300 Impact . | . . . . Slashing . | . . . . Piercing . | . . . . Highest Corruption . | . . . . Average Corruption . | . . . . Corruption Purged . | . . . . Corruption Blocked . | . . . . Overload Shots . | . . . . Overflow Damage . | . . . . Projectiles . | . . . . Explosions . | . . . . Melee . | . . . . Knockbacks . | . . . . Impact . | . . . . Kinetic . | . . . . Secondary . | . . . . Self-Inflicted Damage . | . . . . Shots . | . . . . Rammed 6 | . 6 . . Targets Rammed 6 | . 6 . . Kicked . | . . . . Crushed . | . . . . Highest Temperature 132 | . 66 132 3 Average Temperature 27 | . 15 47 3 Received Heat Transfer 384 | . 312 . 72 Siege Activations . | . . . . Martial Activations . | . . . . Shielding Activations . | . . . . Robots Disrupted . | . . . . Combat Hostiles . | . . . . Robots Corrupted . | . . . . Combat Hostiles . | . . . . Parts Fried 3 | . . 1 2 Impact Corruptions . | . . . . Robots Melted . | . . . . Combat Hostiles . | . . . . Parts Melted . | . . . . Heat Transferred 50 | . . 50 . Parts Sabotaged . | . . . . Parts Stolen . | . . . . Parts Stripped . | . . . . Power Chain Reactions 2 | . . 1 1 Alert | -11 -10 -10 -10 ------- Run | Yrd Mat Min Sub Maximum Alert Level . | . . . . Low Security (%) 100 | 100 100 100 . Level 1 . | . . . . Level 2 . | . . . . Level 3 . | . . . . Level 4 . | . . . . Level 5 . | . . . . High Security . | . . . . Max Security . | . . . . Peak Influence 122 | . 122 105 . Initial 45 | . . 45 . Average 32 | . 35 31 . Influence Increases 939 | 5 504 170 260 Destroy 0b10 Robot/C 520 | . 320 120 80 Destroy 0b10 Robot/NC 55 | 5 35 15 . Destroy Leader 94 | . 74 20 . Select Force Hacks 60 | . 60 . . Lose Combat Pursuer 210 | . 15 15 180 Influence Decreases 831 | 5 388 286 152 Entered New Map 71 | . . 71 . Time Decay 720 | 5 378 205 132 Lost Part 40 | . 10 10 20 Squads Dispatched 7 | . 7 . . Investigation 3 | . 3 . . Extermination . | . . . . Reinforcement 4 | . 4 . . Assault . | . . . . Garrison . | . . . . Intercept . | . . . . Searches Triggered . | . . . . Construction Impeded . | . . . . Haulers Reinforced . | . . . . Active Scanning Responses . | . . . . Cargo Convoy Interrupts . | . . . . Stealth | -11 -10 -10 -10 --------- Run | Yrd Mat Min Sub Distress Signals 4 | . 4 . . Communications Jammed . | . . . . Distress Signals . | . . . . Times Spotted 59 | . 35 7 17 Peak Tracking Total 6 | . 5 3 6 Tactical Retreats 8 | . 1 1 6 Traps | -11 -10 -10 -10 ------- Run | Yrd Mat Min Sub Traps Triggered 1 | . 1 . . Indirectly . | . . . . Trap Hack Attempts . | . . . . Triggered . | . . . . Disarmed . | . . . . Reprogrammed . | . . . . Reused . | . . . . Traps Extracted . | . . . . Installed . | . . . . Triggered . | . . . . Machines | -11 -10 -10 -10 ---------- Run | Yrd Mat Min Sub Machines Disabled . | . . . . Max in Single Turn . | . . . . Machines Repaired . | . . . . Machines Dismantled . | . . . . Machines Sabotaged . | . . . . Overloaded Fab Kills . | . . . . Hacking | -11 -10 -10 -10 --------- Run | Yrd Mat Min Sub Machines Accessed 6 | . 4 1 1 Terminals 2 | . 2 . . Fabricators . | . . . . Repair Stations . | . . . . Recycling Units 2 | . 2 . . Scanalyzers . | . . . . Garrison Access . | . . . . Total Hacks 12 | . 7 1 4 Successful 8 | . 3 1 4 Failed 4 | . 4 . . Catastrophic 1 | . 1 . . Database Lockouts . | . . . . Manual 7 | . 7 . . Terminals 5 | . 5 . . Fabricators . | . . . . Repair Stations . | . . . . Recycling Units 2 | . 2 . . Scanalyzers . | . . . . Garrison Access . | . . . . Terminal Hacks 5 | . . 1 4 Record 4 | . . . 4 Open Door 1 | . . 1 . Fabricator Hacks . | . . . . Repair Station Hacks . | . . . . Recycling Unit Hacks . | . . . . Scanalyzer . | . . . . Garrison Access Hacks . | . . . . Unauthorized Hacks 3 | . 3 . . Terminals 1 | . 1 . . Skim 1 | . 1 . . Fabricators . | . . . . Repair Stations . | . . . . Recycling Units 2 | . 2 . . Tunnel 2 | . 2 . . Scanalyzers . | . . . . Garrison Access . | . . . . Data Cores Recovered . | . . . . Used . | . . . . Hacking Detections 2 | . 2 . . Full Trace Events . | . . . . Feedback Events . | . . . . Feedback Blocked . | . . . . Robot Schematics Acquired . | . . . . Robots Built . | . . . . Authchips . | . . . . Time . | . . . . Total Robot Build Rating . | . . . . Part Schematics Acquired . | . . . . Parts Built . | . . . . Authchips . | . . . . Time . | . . . . Total Part Build Rating . | . . . . Parts Repaired . | . . . . Time . | . . . . Parts Recycled . | . . . . Recycled Matter . | . . . . Retrieved Matter . | . . . . Retrieved Components . | . . . . Parts Scanalyzed . | . . . . Part Schematics Acquired . | . . . . Parts Damaged . | . . . . Bothacking | -11 -10 -10 -10 ------------ Run | Yrd Mat Min Sub Used RIF Installer . | . . . . Robots Hacked . | . . . . Non-combat . | . . . . Combat . | . . . . Robot Hacks Applied . | . . . . Relay Couplers Released . | . . . . Fabnet Peak Effective % . | . . . . Robots Rewired . | . . . . Allies Hacked . | . . . . Hacks Repelled . | . . . . Allies | -11 -10 -10 -10 -------- Run | Yrd Mat Min Sub Total Allies . | . . . . Largest Group . | . . . . Highest-Rated Group . | . . . . Highest-Rated Ally . | . . . . Total Orders . | . . . . Ally Attacks . | . . . . Total Damage . | . . . . Kills . | . . . . Allies Corrupted . | . . . . Allies Melted . | . . . . Intel | -11 -10 -10 -10 ------- Run | Yrd Mat Min Sub Active Infowar (turns) 1033 | 39 426 2 566 Seismic 1033 | 39 426 2 566 Robot Analysis Total . | . . . . Derelict Logs Recovered 3 | . . 2 1 Drone Launches . | . . . . Drone Recoveries . | . . . . Exploration | -11 -10 -10 -10 ------------- Run | Yrd Mat Min Sub Turns Passed 3148 | 124 1758 700 566 Spaces Moved 1693 | 60 628 593 412 Core 3 | 3 . . . Treads 685 | 57 628 . . Legs . | . . . . Wheels 1005 | . . 593 412 Hover . | . . . . Flight . | . . . . Fastest Speed 50 | 50 160 110 110 Average Speed 155 | 154 228 110 110 Slowest Speed 320 | 160 320 110 110 Overloaded Moves . | . . . . Propulsion Burnouts . | . . . . Robots Hopped . | . . . . Potential Cave-ins . | . . . . Cave-ins Triggered . | . . . . Exploration Rate (%) 53 | 4 91 99 20 Regions Visited 3 Branch Regions 2 Pre-discovered Areas 5 | . 2 3 . Known Exits Taken 1 | . . 1 . Unknown Exits Taken 2 | 1 1 . . Scrap Searched 2 | . . 2 . Spaces Dug . | . . . . Terrain Destroyed 2 | . . . 2 Melee . | . . . . Projectile . | . . . . AOE 2 | . . . 2 Terrain Rammed . | . . . . Walls Destroyed . | . . . . Machines Disabled . | . . . . Actions | -11 -10 -10 -10 --------- Run | Yrd Mat Min Sub Total 2015 | 82 817 617 499 Wait 129 | 1 64 1 63 Move 1690 | 59 627 592 412 Hop . | . . . . Pick Up 35 | 9 17 3 6 Fast Attach 11 | 6 5 . . Attach 5 | 1 1 1 2 Detach 1 | . 1 . . Swap 11 | 1 4 3 3 Drop 18 | 1 12 5 . Fire 109 | 4 80 12 13 Melee . | . . . . Ram . | . . . . Kick . | . . . . Crush 6 | . 6 . . Escape Stasis . | . . . . Rewire . | . . . . Trap . | . . . . Miscellaneous . | . . . . Route ------- -11/Scrapyard -10/Materials (discovered 5 exits: *Mat x2 / *Min x2 / *Sub) -10/Mines (discovered 3 exits: *Mat x2 / *Sub) -10/Subcaves (discovered 2 exits: [*Mat] / [*Rec]) History --------- Turn | Location | Event 6 | -11/Scrapyard | Discovered new exit (range 15) 125 | -11/Scrapyard | Entered Materials 293 | -10/Materials | Discovered new exit (range 9) 316 | -10/Materials | Build established: Mutant 333 | -10/Materials | Discovered new exit (range 9) 534 | -10/Materials | Discovered new exit (range 14) 928 | -10/Materials | Discovered new exit (range 16) 1237 | -10/Materials | Discovered new exit (range 12) 1883 | -10/Materials | Entered Mines 1888 | -10/Mines | Core integrity fell below 50% 1920 | -10/Mines | Learned location of Storage (-7) 2008 | -10/Mines | Discovered new exit (range 5) 2016 | -10/Mines | Found the Drone Emporium 2022 | -10/Mines | Found Prototype Device 2052 | -10/Mines | Discovered new exit (range 14) 2154 | -10/Mines | Learned location of Zion (-6) 2171 | -10/Mines | Discovered new exit (range 10) 2302 | -10/Mines | Deemed a non-threat by the Exiles lab entrance 2551 | -10/Mines | Identified exit to Materials 2580 | -10/Mines | Identified exit to Subcaves 2583 | -10/Mines | Entered Subcaves 2587 | -10/Subcaves | Learned Materials trap positions 2745 | -10/Subcaves | Discovered new exit (range 15) 2768 | -10/Subcaves | Visited Clippyterm 2772 | -10/Subcaves | Learned Factory fabricator intel 2856 | -10/Subcaves | Discovered new exit (range 15) 3003 | -10/Subcaves | Shifting Twisted Machinery released Sub. Shrapnel Launcher 3007 | -10/Subcaves | Shifting Twisted Machinery released Slug Cannon 3149 | -10/Subcaves | Destroyed by 7B-67C(R) with Subdweller Shrapnel Launcher Last Messages --------------- Source. 03033_ Acquired Sub. Power Source. 03040_ Imp. EM Shotgun destroyed. 03041_ XP-NBG(R): "OHNO!" 03041_ Subatomizers dissect the Disposable Heat Sink. 03052_ XP-NBG(R) destroyed. 03053_ Subatomizers dissect the Disposable Heat Sink. 03057_ Acquired Sub. Monowheel. 03065_ Subatomizers dissect the Multitool. 03068_ Acquired 5 matter. 03091_ W1-2SU(R) affixes Scrap Shield Fragment to Scrap Shield. 03094_ Disposable Heat Sink fried. 03094_ Sub. Optics fried. 03094_ W1-2SU(R) destroyed. 03142_ WQ-6ZY(R) destroyed. 03148_ Acquired Sub. Machine Gun. 03149_ Acquired 5 matter. Map ----- +----------------------------------------------------+ | ??????????????????????????" "#?????????# % | | ?????????????????????????##""#??????????# | | ?????????????????????????#"""#??????????????# ## | | ?????????????????????????# ""#???????????????????# | | ?????????????????????????# ""#???????????#####??## | | ?????????????????????????# ""##????????### #### | | ?????????????????????????## #????????# % | | ??????????????????????????# ############ % | | ??????????????????????????# ### # # | | ??????????????????????????# # | | ?????????????????????????## # | | ?????????????????????????# # # #### | | ?????????????????????????# ### #### % ##??? | | ????????????????????????## % #?## #??#######???? | | ????????????????????????# ##??### #???????????? | | ????????????#??#????????## #?????## #???????????? | | ????????????? ## ??##????# ##???##?###??????????? | | ????????????? ### ????#% ##? # # ???????? | | ??????????????? ##?## ## # #??????? | | ???????????????? #?# #???????? | | ????????????????? #?# #??????????? | | ????????????????#?# %?#*&[ ###??????????? | | ????????????????# ## ###%%& ##????????????? | | ????????????????#% ##!&!* ##?????????????? | | ????????????????# != #######??????????????? | | ????????????????# # @! #????????????????????? | | ????????????????#???# ###*=##????????????????????? | | ????????????????????###?# ##????????????????????? | | ??????????????????????### #????????????????????? | | ??????????????????????# #????????????????????? | | ??????????????? %"|% ?????????????????? | | ??????????????# """ #??????????????? | | ??????????????# %## " ###"# ???????????? | | ??????????????#???# " R##??# #??????????? | | ????????????????? "### ?????" ???????????? | | ??????????????? " ""??# ?????? ??????????? | | ??????????????% "???? ??????? ?? ???????????? | | ??????????????# #?????""????????????????????????? | | ??????????????##??????"""????????????????????????? | | ??????????????????????"" ????????????????????????? | | ?????????????????????????????????????????????????? | | ?????????????????????????????????????????????????? | | ?????????????????????????????????????????????????? | | ?????????????????????????????????????????????????? | | ?????????????????????????????????????????????????? | | ?????????????????????????????????????????????????? | | ?????????????????????????????????????????????????? | | ?????????????????????????????????????????????????? | | ?????????????????????????????????????????????????? | | ?????????????????????????????????????????????????? | +----------------------------------------------------+ Best States ------------- Heat Dissipation 25 Energy Generation 12 Energy Capacity 265 Matter Stores 300 Matter Capacity 300 Sight Range 16 Terrain Scan Density 10 Evasion (%) 40 Targeting Accuracy 6 Recoil Reduction 2 Item Schematics ----------------- None Robot Schematics ------------------ None Fabricated ------------ Nothing Repaired ---------- Nothing Alien Tech Used ----------------- None Achievements -------------- None Challenges ------------ None Game ------ Seed ThermicThermicGuard Manual? 0 Play Time 00:16:25 Cumulative 680.4 hours Start 2025.06.05 @ 20:16:59 End 2025.06.05 @ 20:32:15 Sessions 1 Manual Loads 0 Difficulty Rogue Special Mode None Game No. 153 Rogue 153 Adventurer 0 Explorer 0 Win Type - Total 40 Types 11/6/7/2/1/1/8/2/1/1 Lore% 69 Gallery% 84 Achievement% 81 Wizard Run 0 Options --------- Layout 1 ASCII 0 Keyboard 0 Movement Mouse Keybinds 0 Fullscreen 2 Font 24/Smallcaps Map View 50x35 Zoom Use 2% Tactical HUD 1 Map Filters NONE Filters NONE Steam 1 RUN: 7e34fa56-7ae9-45f1-865a-33006416ee35